fUSD/lending_fUSD_20250427
["ID","MTS","AMOUNT","RATE_DAILY","PERIOD"]
[359175707,1745773843112,-480.0,0.00019998,2]
[359175709,1745773843121,-480.0,0.00019998,2]
[359175711,1745773843130,-378.74,0.00019998,2]
[359175713,1745773843139,-343.83,0.00019998,2]
[359175715,1745773843149,-413.7,0.00019998,2]
[359175717,1745773843159,-480.0,0.00019998,2]
[359175719,1745773843168,-480.0,0.00019998,2]
[359175721,1745773843177,-510.01,0.00019998,2]
[359175723,1745773843186,-480.0,0.00019998,2]
[359175725,1745773843195,-480.0,0.00019998,2]
[359175727,1745773843204,-480.0,0.00019998,2]
[359175729,1745773843213,-480.0,0.00019998,2]
[359175731,1745773843222,-480.0,0.00019998,2]
[359175732,1745773843231,-419.45,0.00019998,2]
[359175733,1745773843240,-205.95,0.00019998,2]
[359175734,1745773843249,-480.0,0.00019998,2]
[359175735,1745773843258,-480.0,0.00019998,2]
[359175736,1745773843267,-359.78,0.00019998,2]
[359175737,1745773843276,-480.0,0.00019998,2]
[359175738,1745773843286,-480.0,0.00019998,2]
[359175739,1745773843295,-480.0,0.00019998,2]
[359175740,1745773843305,-480.0,0.00019998,2]
[359175741,1745773843315,-480.0,0.00019998,2]
[359175742,1745773843324,-480.0,0.00019998,2]
[359175743,1745773843334,-189.87,0.00019998,2]
[359175744,1745773843343,-454.03,0.00019998,2]
[359175745,1745773843354,-453.87,0.00019998,2]
[359175746,1745773843364,-480.0,0.00019998,2]
[359175747,1745773843373,-480.0,0.00019998,2]
[359175748,1745773843382,-480.0,0.00019998,2]
[359175749,1745773843391,-480.0,0.00019998,2]
[359175750,1745773843400,-480.0,0.00019998,2]
[359175751,1745773843410,-414.8,0.00019998,2]
[359175752,1745773843419,-480.0,0.00019998,2]
[359175753,1745773843429,-480.0,0.00019998,2]
[359175754,1745773843438,-480.0,0.00019998,2]
[359175755,1745773843447,-299.36,0.00019998,2]
[359175756,1745773843457,-480.0,0.00019998,2]
[359175757,1745773843467,-506.24,0.00019998,2]
[359175758,1745773843476,-234.61,0.00019998,2]
[359175759,1745773843486,-472.26,0.00019998,2]
[359175760,1745773843495,-424.12,0.00019998,2]
[359175761,1745773843504,-480.0,0.00019998,2]
[359175762,1745773843514,-480.0,0.00019998,2]
[359175763,1745773843523,-480.0,0.00019998,2]
[359175764,1745773843532,-426.23,0.00019998,2]
[359175765,1745773843541,-432.21,0.00019998,2]
[359175766,1745773843550,-516.13,0.00019998,2]
[359175767,1745773843559,-618.22,0.00019998,2]
[359175768,1745773843568,-480.0,0.00019998,2]
[359175769,1745773843578,-480.0,0.00019998,2]
[359175770,1745773843587,-480.0,0.00019998,2]
[359175771,1745773843596,-448.52,0.00019998,2]
[359175772,1745773843605,-480.0,0.00019998,2]
[359175773,1745773843615,-480.0,0.00019998,2]
[359175774,1745773843624,-480.0,0.00019998,2]
[359175775,1745773843635,-480.0,0.00019998,2]
[359175776,1745773843644,-323.1,0.00019998,2]
[359175777,1745773843653,-422.14,0.00019998,2]
[359175778,1745773843662,-189.94,0.00019998,2]
[359175779,1745773843672,-480.0,0.00019998,2]
[359175780,1745773843682,-377.81,0.00019998,2]
[359175781,1745773843691,-333.8,0.00019998,2]
[359175782,1745773843700,-486.74,0.00019998,2]
[359175783,1745773843710,-822.0,0.00019999,2]
[359175784,1745773843719,-1645.45096237,0.00019999,2]
[359175785,1745773843729,-500.0,0.00019999,2]
[359175786,1745773843738,-500.0,0.00019999,2]
[359175787,1745773843748,-480.0,0.00019999,2]
[359175788,1745773843757,-462.23,0.00019999,2]
[359175789,1745773843767,-480.0,0.00019999,2]
[359175790,1745773843776,-190.3,0.00019999,2]
[359175791,1745773843786,-480.0,0.00019999,2]
[359175792,1745773843795,-520.0,0.00019999,2]
[359175793,1745773843805,-548.71,0.00019999,2]
[359175794,1745773843814,-500.0,0.00019999,2]
[359175795,1745773843823,-186.98437096,0.00019999,2]
[359175796,1745773843833,-500.0,0.00019999,2]
[359175797,1745773843842,-500.0,0.00019999,2]
[359175798,1745773843851,-500.0,0.00019999,2]
[359175799,1745773843861,-500.0,0.00019999,2]
[359175800,1745773843870,-480.0,0.00019999,2]
[359175801,1745773843880,-273.54,0.00019999,2]
[359175802,1745773843889,-500.0,0.00019999,2]
[359175803,1745773843899,-500.86,0.00019999,2]
[359175804,1745773843908,-500.0,0.00019999,2]
[359175805,1745773843917,-500.0,0.00019999,2]
[359175806,1745773843928,-500.0,0.00019999,2]
[359175807,1745773843938,-508.95882615,0.00019999,2]
[359175808,1745773843948,-500.0,0.00019999,2]
[359175809,1745773843957,-500.0,0.00019999,2]
[359175810,1745773843966,-500.0,0.00019999,2]
[359175811,1745773843977,-500.0,0.00019999,2]
[359175812,1745773843986,-621.44,0.00019999,2]
[359175813,1745773843996,-500.0,0.00019999,2]
[359175814,1745773844007,-500.0,0.00019999,2]
[359175815,1745773844016,-500.0,0.00019999,2]
[359175816,1745773844026,-480.0,0.00019999,2]
[359175817,1745773844036,-480.0,0.00019999,2]
[359175818,1745773844046,-480.0,0.00019999,2]
[359175819,1745773844055,-480.0,0.00019999,2]
[359175820,1745773844065,-254.39,0.00019999,2]
[359175821,1745773844074,-480.0,0.00019999,2]
[359175822,1745773844083,-480.0,0.00019999,2]
[359175823,1745773844093,-426.66,0.00019999,2]
[359175824,1745773844103,-525.25,0.00019999,2]
[359175825,1745773844114,-480.0,0.00019999,2]
[359175826,1745773844125,-542.7,0.00019999,2]
[359175827,1745773844135,-500.0,0.00019999,2]
[359175828,1745773844145,-500.0,0.00019999,2]
[359175829,1745773844155,-480.0,0.00019999,2]
[359175830,1745773844165,-313.11,0.00019999,2]
[359175831,1745773844175,-480.0,0.00019999,2]
[359175832,1745773844184,-480.0,0.00019999,2]
[359175833,1745773844194,-314.06,0.00019999,2]
[359175834,1745773844204,-588.57,0.00019999,2]
[359175835,1745773844213,-500.0,0.00019999,2]
[359175836,1745773844222,-500.0,0.00019999,2]
[359175837,1745773844231,-500.0,0.00019999,2]
[359175838,1745773844239,-545.88,0.00019999,2]
[359175839,1745773844248,-480.0,0.00019999,2]
[359175840,1745773844258,-559.35,0.00019999,2]
[359175841,1745773844267,-500.0,0.00019999,2]
[359175842,1745773844276,-480.0,0.00019999,2]
[359175843,1745773844286,-453.52,0.00019999,2]
[359175844,1745773844295,-507.43,0.00019999,2]
[359175845,1745773844305,-500.0,0.00019999,2]
[359175846,1745773844314,-480.0,0.00019999,2]
[359175847,1745773844324,-280.95,0.00019999,2]
[359175848,1745773844333,-480.0,0.00019999,2]
[359175849,1745773844343,-189.03,0.00019999,2]
[359175850,1745773844352,-500.0,0.00019999,2]
[359175851,1745773844361,-480.0,0.00019999,2]
[359175852,1745773844370,-198.22,0.00019999,2]
[359175853,1745773844379,-500.0,0.00019999,2]
[359175854,1745773844389,-480.0,0.00019999,2]
[359175855,1745773844399,-184.41,0.00019999,2]
[359175856,1745773844408,-480.0,0.00019999,2]
[359175857,1745773844417,-278.04,0.00019999,2]
[359175858,1745773844427,-500.0,0.00019999,2]
[359175859,1745773844436,-480.0,0.00019999,2]
[359175860,1745773844445,-617.7,0.00019999,2]
[359175861,1745773844455,-500.0,0.00019999,2]
[359175862,1745773844464,-480.0,0.00019999,2]
[359175863,1745773844474,-406.75,0.00019999,2]
[359175864,1745773844483,-480.0,0.00019999,2]
[359175865,1745773844492,-226.88,0.00019999,2]
[359175866,1745773844501,-480.0,0.00019999,2]
[359175867,1745773844510,-333.21,0.00019999,2]
[359175868,1745773844520,-539.38,0.00019999,2]
[359175869,1745773844530,-480.0,0.00019999,2]
[359175870,1745773844539,-621.22,0.00019999,2]
[359175871,1745773844549,-383.81,0.00019999,2]
[359175872,1745773844558,-500.0,0.00019999,2]
[359175873,1745773844567,-480.0,0.00019999,2]
[359175874,1745773844576,-520.0,0.00019999,2]
[359175875,1745773844586,-500.0,0.00019999,2]
[359175876,1745773844595,-480.0,0.00019999,2]
[359175877,1745773844605,-267.79,0.00019999,2]
[359175878,1745773844614,-480.0,0.00019999,2]
[359175879,1745773844624,-292.02,0.00019999,2]
[359175880,1745773844635,-500.0,0.00019999,2]
[359175881,1745773844645,-480.0,0.00019999,2]
[359175882,1745773844654,-358.33,0.00019999,2]
[359175883,1745773844663,-480.0,0.00019999,2]
[359175884,1745773844672,-426.14,0.00019999,2]
[359175885,1745773844682,-500.0,0.00019999,2]
[359175886,1745773844692,-500.0,0.00019999,2]
[359175887,1745773844701,-500.0,0.00019999,2]
[359175888,1745773844711,-500.0,0.00019999,2]
[359175889,1745773844721,-500.0,0.00019999,2]
[359175890,1745773844730,-480.0,0.00019999,2]
[359175891,1745773844740,-486.4,0.00019999,2]
[359175892,1745773844749,-500.0,0.00019999,2]
[359175893,1745773844758,-500.0,0.00019999,2]
[359175894,1745773844767,-500.0,0.00019999,2]
[359175895,1745773844776,-480.0,0.00019999,2]
[359175896,1745773844786,-210.12007339,0.00019999,2]
[359175897,1745773844796,-556.47,0.00019999,2]
[359175898,1745773844805,-500.0,0.00019999,2]
[359175899,1745773844815,-500.0,0.00019999,2]
[359175900,1745773844824,-500.0,0.00019999,2]
[359175901,1745773844834,-480.0,0.00019999,2]
[359175902,1745773844844,-156.3,0.00019999,2]
[359175903,1745773844856,-393.40679471,0.00019999,2]
[359175904,1745773844865,-500.0,0.00019999,2]
[359175905,1745773844874,-500.0,0.00019999,2]
[359175906,1745773844883,-527.1656753,0.00019999,2]
[359175907,1745773844893,-500.0,0.00019999,2]
[359175908,1745773844902,-500.0,0.00019999,2]
[359175909,1745773844912,-344.25003666,0.00019999,2]
[359175910,1745773844921,-500.0,0.00019999,2]
[359175911,1745773844931,-507.8862592,0.00019999,2]
[359175912,1745773844940,-500.0,0.00019999,2]
[359175913,1745773844953,-500.0,0.00019999,2]
[359175914,1745773844963,-500.0,0.00019999,2]
[359175915,1745773844972,-480.0,0.00019999,2]
[359175916,1745773844981,-328.52,0.00019999,2]
[359175917,1745773844991,-500.0,0.00019999,2]
[359175918,1745773845000,-500.0,0.00019999,2]
[359175919,1745773845009,-522.67730116,0.00019999,2]
[359175920,1745773845020,-500.0,0.00019999,2]
[359175921,1745773845030,-581.85654905,0.00019999,2]
[359175922,1745773845040,-480.0,0.00019999,2]
[359175923,1745773845049,-575.72,0.00019999,2]
[359175924,1745773845059,-500.0,0.00019999,2]
[359175925,1745773845069,-480.0,0.00019999,2]
[359175926,1745773845079,-593.25,0.00019999,2]
[359175927,1745773845088,-480.0,0.00019999,2]
[359175928,1745773845098,-542.67,0.00019999,2]
[359175929,1745773845107,-500.0,0.00019999,2]
[359175930,1745773845117,-480.0,0.00019999,2]
[359175931,1745773845127,-302.3,0.00019999,2]
[359175932,1745773845136,-500.0,0.00019999,2]
[359175933,1745773845145,-500.0,0.00019999,2]
[359175934,1745773845155,-265.19813564,0.00019999,2]
[359175935,1745773845566,-234.80186436,0.00019999,2]
[359175936,1745773845576,-500.0,0.00019999,2]
[359175937,1745773845585,-480.0,0.00019999,2]
[359175938,1745773845594,-500.0,0.00019999,2]
[359175939,1745773845604,-332.96,0.00019999,2]
[359175940,1745773845614,-500.0,0.00019999,2]
[359175941,1745773845623,-500.0,0.00019999,2]
[359175942,1745773845633,-500.0,0.00019999,2]
[359175943,1745773845642,-480.0,0.00019999,2]
[359175944,1745773845652,-166.88,0.00019999,2]
[359175945,1745773845661,-508.41,0.00019999,2]
[359175946,1745773845671,-480.0,0.00019999,2]
[359175947,1745773845680,-290.13,0.00019999,2]
[359175948,1745773845690,-500.0,0.00019999,2]
[359175949,1745773845700,-480.0,0.00019999,2]
[359175950,1745773845710,-500.0,0.00019999,2]
[359175951,1745773845720,-468.3,0.00019999,2]
[359175952,1745773845730,-500.0,0.00019999,2]
[359175953,1745773845740,-500.0,0.00019999,2]
[359175954,1745773845749,-517.17933903,0.00019999,2]
[359175955,1745773845759,-500.0,0.00019999,2]
[359175956,1745773845769,-500.0,0.00019999,2]
[359175957,1745773845778,-480.0,0.00019999,2]
[359175958,1745773845792,-500.0,0.00019999,2]
[359175959,1745773845801,-613.95,0.00019999,2]
[359175960,1745773845811,-480.0,0.00019999,2]
[359175961,1745773845821,-286.01,0.00019999,2]
[359175962,1745773845830,-500.0,0.00019999,2]
[359175963,1745773845840,-345.90740652,0.00019999,2]
[359175964,1745773845849,-500.0,0.00019999,2]
[359175965,1745773845859,-500.0,0.00019999,2]
[359175966,1745773845869,-500.0,0.00019999,2]
[359175967,1745773845878,-576.48,0.00019999,2]
[359175968,1745773845887,-500.0,0.00019999,2]
[359175969,1745773845897,-500.0,0.00019999,2]
[359175970,1745773845907,-500.0,0.00019999,2]
[359175971,1745773845916,-480.0,0.00019999,2]
[359175972,1745773845926,-470.51,0.00019999,2]
[359175973,1745773845935,-500.0,0.00019999,2]
[359175974,1745773845946,-500.0,0.00019999,2]
[359175975,1745773845957,-500.0,0.00019999,2]
[359175976,1745773845967,-500.0,0.00019999,2]
[359175977,1745773845976,-500.0,0.00019999,2]
[359175978,1745773845985,-500.0,0.00019999,2]
[359175979,1745773845995,-500.0,0.00019999,2]
[359175980,1745773846005,-500.0,0.00019999,2]
[359175981,1745773846014,-500.0,0.00019999,2]
[359175982,1745773846023,-500.0,0.00019999,2]
[359175983,1745773846033,-500.0,0.00019999,2]
[359175984,1745773846042,-500.0,0.00019999,2]
[359175985,1745773846051,-480.0,0.00019999,2]
[359175986,1745773846061,-533.13623108,0.00019999,2]
[359175987,1745773846070,-503.17112895,0.00019999,2]
[359175988,1745773846079,-500.0,0.00019999,2]
[359175989,1745773846089,-500.0,0.00019999,2]
[359175990,1745773846098,-500.0,0.00019999,2]
[359175991,1745773846107,-587.61,0.00019999,2]
[359175992,1745773846116,-609.87,0.00019999,2]
[359175993,1745773846125,-480.0,0.00019999,2]
[359175994,1745773846135,-480.0,0.00019999,2]
[359175995,1745773846144,-500.0,0.00019999,2]
[359175996,1745773846153,-275.27,0.00019999,2]
[359175997,1745773846162,-504.09725758,0.00019999,2]
[359175998,1745773846171,-480.0,0.00019999,2]
[359175999,1745773846181,-191.52,0.00019999,2]
[359176000,1745773846190,-500.0,0.00019999,2]
[359176001,1745773846199,-500.0,0.00019999,2]
[359176002,1745773846208,-480.0,0.00019999,2]
[359176003,1745773846217,-621.13,0.00019999,2]
[359176004,1745773846227,-500.0,0.00019999,2]
[359176005,1745773846236,-500.0,0.00019999,2]
[359176006,1745773846246,-500.0,0.00019999,2]
[359176007,1745773846255,-500.0,0.00019999,2]
[359176008,1745773846264,-171.1200629,0.00019999,2]
[359176009,1745773846274,-500.0,0.00019999,2]
[359176010,1745773846284,-500.0,0.00019999,2]
[359176011,1745773846293,-519.81245533,0.00019999,2]
[359176012,1745773846303,-500.0,0.00019999,2]
[359176013,1745773846312,-500.0,0.00019999,2]
[359176014,1745773846322,-500.0,0.00019999,2]
[359176015,1745773846332,-557.66,0.00019999,2]
[359176016,1745773846341,-480.0,0.00019999,2]
[359176017,1745773846351,-480.0,0.00019999,2]
[359176018,1745773846360,-562.5,0.00019999,2]
[359176019,1745773846369,-500.0,0.00019999,2]
[359176020,1745773846379,-542.2,0.00019999,2]
[359176021,1745773846388,-616.88,0.00019999,2]
[359176022,1745773846398,-500.0,0.00019999,2]
[359176023,1745773846408,-563.64666102,0.00019999,2]
[359176024,1745773846417,-500.0,0.00019999,2]
[359176025,1745773846427,-480.0,0.00019999,2]
[359176026,1745773846436,-468.3,0.00019999,2]
[359176027,1745773846445,-500.0,0.00019999,2]
[359176028,1745773846454,-595.07,0.00019999,2]
[359176029,1745773846463,-500.0,0.00019999,2]
[359176030,1745773846472,-500.0,0.00019999,2]
[359176031,1745773846481,-500.0,0.00019999,2]
[359176032,1745773846490,-500.0,0.00019999,2]
[359176033,1745773846499,-500.0,0.00019999,2]
[359176034,1745773846508,-500.0,0.00019999,2]
[359176035,1745773846517,-168.26,0.00019999,2]
[359176036,1745773846526,-500.0,0.00019999,2]
[359176037,1745773846536,-480.0,0.00019999,2]
[359176038,1745773846546,-564.85,0.00019999,2]
[359176039,1745773846555,-500.0,0.00019999,2]
[359176040,1745773846564,-500.0,0.00019999,2]
[359176041,1745773846573,-500.0,0.00019999,2]
[359176042,1745773846583,-507.78360806,0.00019999,2]
[359176043,1745773846592,-500.0,0.00019999,2]
[359176044,1745773846601,-500.0,0.00019999,2]
[359176045,1745773846610,-500.0,0.00019999,2]
[359176046,1745773846619,-480.0,0.00019999,2]
[359176047,1745773846629,-534.98,0.00019999,2]
[359176048,1745773846638,-580.87,0.00019999,2]
[359176049,1745773846648,-500.0,0.00019999,2]
[359176050,1745773846657,-509.9478685,0.00019999,2]
[359176051,1745773846666,-500.0,0.00019999,2]
[359176052,1745773846675,-500.0,0.00019999,2]
[359176053,1745773846684,-506.12927762,0.00019999,2]
[359176054,1745773846693,-500.0,0.00019999,2]
[359176055,1745773846703,-500.0,0.00019999,2]
[359176056,1745773846712,-534.14757221,0.00019999,2]
[359176057,1745773846722,-350.29096404,0.00019999,2]
[359176058,1745773846732,-480.0,0.00019999,2]
[359176059,1745773846742,-575.46,0.00019999,2]
[359176060,1745773846752,-500.0,0.00019999,2]
[359176061,1745773846762,-500.0,0.00019999,2]
[359176062,1745773846772,-500.0,0.00019999,2]
[359176063,1745773846781,-500.0,0.00019999,2]
[359176064,1745773846791,-500.0,0.00019999,2]
[359176065,1745773846800,-506.23523529,0.00019999,2]
[359176066,1745773846809,-500.0,0.00019999,2]
[359176067,1745773846820,-500.0,0.00019999,2]
[359176068,1745773846829,-500.0,0.00019999,2]
[359176069,1745773846839,-480.0,0.00019999,2]
[359176070,1745773846848,-480.0,0.00019999,2]
[359176071,1745773846857,-607.43,0.00019999,2]
[359176072,1745773846866,-500.00035341,0.00019999,2]
[359176073,1745773846876,-500.0,0.00019999,2]
[359176074,1745773846885,-500.0,0.00019999,2]
[359176075,1745773846895,-500.0,0.00019999,2]
[359176076,1745773846904,-500.0,0.00019999,2]
[359176077,1745773846914,-480.0,0.00019999,2]
[359176078,1745773846924,-500.0,0.00019999,2]
[359176079,1745773846935,-198.19,0.00019999,2]
[359176080,1745773846945,-500.0,0.00019999,2]
[359176081,1745773846957,-480.0,0.00019999,2]
[359176082,1745773846966,-480.0,0.00019999,2]
[359176083,1745773846976,-595.39,0.00019999,2]
[359176084,1745773846985,-480.0,0.00019999,2]
[359176085,1745773846997,-480.0,0.00019999,2]
[359176086,1745773847006,-480.0,0.00019999,2]
[359176087,1745773847017,-480.0,0.00019999,2]
[359176088,1745773847029,-326.69,0.00019999,2]
[359176089,1745773847039,-500.0,0.00019999,2]
[359176090,1745773847049,-480.0,0.00019999,2]
[359176091,1745773847058,-480.0,0.00019999,2]
[359176092,1745773847067,-159.8,0.00019999,2]
[359176093,1745773847077,-480.0,0.00019999,2]
[359176094,1745773847086,-283.89,0.00019999,2]
[359176095,1745773847095,-268.76479781,0.00019999,2]
[359176096,1745773847105,-500.0,0.00019999,2]
[359176097,1745773847114,-165.16591815,0.00019999,2]
[359176098,1745773847123,-500.0,0.00019999,2]
[359176099,1745773847132,-500.0,0.00019999,2]
[359176100,1745773847142,-480.0,0.00019999,2]
[359176101,1745773847151,-158.94,0.00019999,2]
[359176102,1745773847160,-480.0,0.00019999,2]
[359176103,1745773847169,-543.5,0.00019999,2]
[359176104,1745773847178,-480.0,0.00019999,2]
[359176105,1745773847187,-500.0,0.00019999,2]
[359176106,1745773847197,-227.65,0.00019999,2]
[359176107,1745773847206,-1000.0,0.00019999,2]
[359176108,1745773847216,-500.0,0.00019999,2]
[359176109,1745773847225,-525.69,0.00019999,2]
[359176110,1745773847236,-500.0,0.00019999,2]
[359176111,1745773847246,-480.0,0.00019999,2]
[359176112,1745773847256,-623.29,0.00019999,2]
[359176113,1745773847266,-500.0,0.00019999,2]
[359176114,1745773847276,-500.0,0.00019999,2]
[359176115,1745773847286,-500.0,0.00019999,2]
[359176116,1745773847295,-480.0,0.00019999,2]
[359176117,1745773847305,-530.9,0.00019999,2]
[359176118,1745773847315,-480.0,0.00019999,2]
[359176119,1745773847325,-390.76,0.00019999,2]
[359176120,1745773847334,-500.0,0.00019999,2]
[359176121,1745773847344,-480.0,0.00019999,2]
[359176122,1745773847353,-257.09,0.00019999,2]
[359176123,1745773847362,-480.0,0.00019999,2]
[359176124,1745773847372,-480.0,0.00019999,2]
[359176125,1745773847381,-184.66,0.00019999,2]
[359176126,1745773847390,-480.0,0.00019999,2]
[359176127,1745773847399,-477.32,0.00019999,2]
[359176128,1745773847408,-503.55118148,0.00019999,2]
[359176129,1745773847418,-525.37,0.00019999,2]
[359176130,1745773847427,-620.36,0.00019999,2]
[359176131,1745773847438,-500.0,0.00019999,2]
[359176132,1745773847447,-500.0,0.00019999,2]
[359176133,1745773847456,-500.0,0.00019999,2]
[359176134,1745773847465,-480.0,0.00019999,2]
[359176135,1745773847474,-472.28,0.00019999,2]
[359176136,1745773847483,-480.0,0.00019999,2]
[359176137,1745773847492,-413.12,0.00019999,2]
[359176138,1745773847501,-500.0,0.00019999,2]
[359176139,1745773847511,-480.0,0.00019999,2]
[359176140,1745773847520,-274.68,0.00019999,2]
[359176141,1745773847530,-384.16431905,0.00019999,2]
[359176142,1745773847539,-500.0,0.00019999,2]
[359176143,1745773847548,-500.0,0.00019999,2]
[359176144,1745773847558,-516.15,0.00019999,2]
[359176145,1745773847567,-509.29205326,0.00019999,2]
[359176146,1745773847577,-500.0,0.00019999,2]
[359176147,1745773847587,-534.59506169,0.00019999,2]
[359176148,1745773847597,-520.78,0.00019999,2]
[359176149,1745773847607,-480.0,0.00019999,2]
[359176150,1745773847616,-480.0,0.00019999,2]
[359176151,1745773847626,-485.29,0.00019999,2]
[359176152,1745773847635,-483.57,0.00019999,2]
[359176153,1745773847644,-480.0,0.00019999,2]
[359176154,1745773847653,-500.0,0.00019999,2]
[359176155,1745773847663,-480.0,0.00019999,2]
[359176156,1745773847672,-293.57,0.00019999,2]
[359176157,1745773847681,-500.0,0.00019999,2]
[359176158,1745773847690,-571.05,0.00019999,2]
[359176159,1745773847699,-500.0,0.00019999,2]
[359176160,1745773847709,-500.0,0.00019999,2]
[359176161,1745773847718,-500.0,0.00019999,2]
[359176162,1745773847727,-500.0,0.00019999,2]
[359176163,1745773847740,-500.0,0.00019999,2]
[359176164,1745773847751,-480.0,0.00019999,2]
[359176165,1745773847763,-480.0,0.00019999,2]
[359176166,1745773847775,-378.54,0.00019999,2]
[359176167,1745773847786,-480.0,0.00019999,2]
[359176168,1745773847797,-204.78895014,0.00019999,2]
[359176169,1745773847807,-500.0,0.00019999,2]
[359176170,1745773847817,-365.23,0.00019999,2]
[359176171,1745773847828,-500.0,0.00019999,2]
[359176172,1745773847838,-500.0,0.00019999,2]
[359176173,1745773847849,-500.0,0.00019999,2]
[359176174,1745773847860,-504.90344811,0.00019999,2]
[359176175,1745773847870,-480.0,0.00019999,2]
[359176176,1745773847881,-301.42,0.00019999,2]
[359176177,1745773847891,-500.0,0.00019999,2]
[359176178,1745773847902,-500.0,0.00019999,2]
[359176179,1745773847913,-500.0,0.00019999,2]
[359176180,1745773847924,-500.0,0.00019999,2]
[359176181,1745773847935,-412.38090439,0.00019999,2]
[359176182,1745773847949,-480.0,0.00019999,2]
[359176183,1745773847960,-480.0,0.00019999,2]
[359176184,1745773847970,-509.83856399,0.00019999,2]
[359176185,1745773847981,-178.72,0.00019999,2]
[359176186,1745773847991,-542.13765852,0.00019999,2]
[359176187,1745773848002,-480.0,0.00019999,2]
[359176188,1745773848011,-444.67,0.00019999,2]
[359176189,1745773848021,-480.0,0.00019999,2]
[359176190,1745773848033,-249.86,0.00019999,2]
[359176191,1745773848045,-500.0,0.00019999,2]
[359176192,1745773848056,-500.0,0.00019999,2]
[359176193,1745773848067,-542.54,0.00019999,2]
[359176194,1745773848079,-500.0,0.00019999,2]
[359176195,1745773848090,-570.26,0.00019999,2]
[359176196,1745773848101,-500.0,0.00019999,2]
[359176197,1745773848112,-513.05744453,0.00019999,2]
[359176198,1745773848123,-480.0,0.00019999,2]
[359176199,1745773848135,-480.0,0.00019999,2]
[359176200,1745773848146,-500.0,0.00019999,2]
[359176201,1745773848158,-173.88,0.00019999,2]
[359176202,1745773848170,-522.94,0.00019999,2]
[359176203,1745773848181,-500.0,0.00019999,2]
[359176204,1745773848192,-503.04,0.00019999,2]
[359176205,1745773848203,-500.0,0.00019999,2]
[359176206,1745773848215,-480.0,0.00019999,2]
[359176207,1745773848228,-227.89,0.00019999,2]
[359176208,1745773848238,-500.0,0.00019999,2]
[359176209,1745773848250,-500.0,0.00019999,2]
[359176210,1745773848262,-500.0,0.00019999,2]
[359176211,1745773848274,-588.95,0.00019999,2]
[359176212,1745773848284,-552.32,0.00019999,2]
[359176213,1745773848296,-480.0,0.00019999,2]
[359176214,1745773848308,-430.22,0.00019999,2]
[359176215,1745773848318,-500.0,0.00019999,2]
[359176216,1745773848330,-472.06355027,0.00019999,2]
[359176217,1745773848341,-500.0,0.00019999,2]
[359176218,1745773848353,-618.66,0.00019999,2]